[Event "DVM U12 2024"]
[Site "Heidelberg"]
[Date "2024.12.28"]
[Round "4"]
[White "Leonhardt, Max"]
[Black "Lange, Fynn Jeremy"]
[Result "0-1"]
[ECO "E05"]
[WhiteElo "1735"]
[BlackElo "1878"]
[Annotator "NA RC"]
[PlyCount "80"]
[EventDate "2024.12.23"]
[EventType "team-tourn"]
[EventRounds "7"]
[EventCountry "GER"]
[SourceTitle "playchess.com"]
[Source "ChessBase"]
[SourceQuality "1"]
[TimeControl "40/5400+30:1800+30"]

1. Nf3 {[%emt 0:00:01]} d5 {[%emt 0:00:18]} 2. g3 {[%emt 0:00:04]} Nf6 {[%emt 0:00:27]} 3. Bg2 {[%emt 0:00:06]} e6 {[%emt 0:00:45]} 4. O-O {[%emt 0:00:09]} Be7 {[%emt 0:00:49]} 5. d4 {[%emt 0:00:07]} O-O {[%emt 0:00:48]} 6. c4 {[%emt 0:00:07]} dxc4 {[%emt 0:01:57]} 7. Nc3 {[%emt 0:01:05]} c5 {[%emt 0:01:28]} 8. dxc5 {[%emt 0:01:13]} Bxc5 {[%emt 0:01:39]} 9. Qa4 {[%emt 0:01:04]} Nc6 {[%emt 0:02:01]} 10. Qxc4 {[%emt 0:00:48]} Bb6 {[%emt 0:01:34]} 11. Rd1 {[%emt 0:02:39]} Qe7 {[%emt 0:01:37]} 12. e3 {[%emt 0:07:11]} e5 {[%emt 0:01:27]} 13. b3 {[%emt 0:01:48]} Be6 {[%emt 0:02:22]} 14. Qe2 {[%emt 0:00:42]} h6 {[%emt 0:03:26]} 15. Bb2 $15 {[%emt 0:02:35]} (15. h3 $11 {is more appropriate.}) 15... a6 {[%emt 0:06:44]} 16. Rac1 {[%emt 0:01:33]} Bg4 {[%emt 0:03:53]} 17. h3 {[%emt 0:02:57]} Bh5 {[%emt 0:00:23]} 18. g4 {[%emt 0:01:47]} Bg6 {[%emt 0:02:04]} 19. Nd2 {[%emt 0:04:49]} Rfd8 {[%emt 0:11:38]} 20. Nc4 {[%emt 0:01:19]} Bc7 {[%emt 0:01:43]} 21. a3 {[%emt 0:04:35]} e4 {[%emt 0:03:11]} 22. Qc2 {[%emt 0:02:18]} Re8 {[%emt 0:05:09]} 23. Nd5 {[%emt 0:08:29]} Nxd5 {[%emt 0:02:26]} 24. Rxd5 {[%emt 0:02:56]} Rad8 {[%emt 0:01:40]} 25. Rcd1 {[%emt 0:00:52]} Rxd5 {[%emt 0:05:53]} 26. Rxd5 {[%emt 0:00:09]} Qe6 {[%emt 0:00:20]} 27. Rd2 {[%emt 0:01:37]} b5 {[%emt 0:02:15]} 28. Qc3 {[%emt 0:11:47]} f6 {[%emt 0:01:52]} 29. Bf1 {[%emt 0:00:37]} Kh7 {[%emt 0:01:09]} 30. Rc2 {[%emt 0:00:53]} bxc4 {[%emt 0:08:08]} 31. Bxc4 {[%emt 0:01:11]} Qe5 {[%emt 0:08:24]} 32. Bxa6 {[%emt 0:03:28]} Qh2+ {[%emt 0:02:01]} 33. Kf1 {[%emt 0:00:05]} Qh1+ {[%emt 0:02:10]} 34. Ke2 {[%emt 0:00:10]} Rd8 {[%emt 0:00:21]} 35. Rc1 {[%emt 0:01:17]} Qf3+ {[%emt 0:00:15]} 36. Ke1 {[%emt 0:00:09]} Be5 {[%emt 0:00:43]} 37. Qxc6 {[%emt 0:01:49]} Bxb2 {[%emt 0:00:17]} 38. Qc7 {[%emt 0:00:07]} Rd5 {[%emt 0:07:30]} 39. Bc4 {[%emt 0:01:00]} Bc3+ {[%emt 0:00:12]} 40. Rxc3 {[%emt 0:00:56]} Qd1# {[%emt 0:00:10]} 0-1

[Event "DVM U12 2024"]
[Site "Heidelberg"]
[Date "2024.12.28"]
[Round "4"]
[White "Tu, Audrey"]
[Black "Zimmer, Tim"]
[Result "1/2-1/2"]
[ECO "C77"]
[WhiteElo "1734"]
[BlackElo "1846"]
[Annotator "NA RC"]
[PlyCount "51"]
[EventDate "2024.12.23"]
[EventType "team-tourn"]
[EventRounds "7"]
[EventCountry "GER"]
[SourceTitle "playchess.com"]
[Source "ChessBase"]
[SourceQuality "1"]
[TimeControl "40/5400+30:1800+30"]

1. e4 {[%emt 0:00:01]} e5 {[%emt 0:00:04]} 2. Nf3 {[%emt 0:00:03]} Nc6 {[%emt 0:00:06]} 3. Bb5 {[%emt 0:00:03]} a6 {[%emt 0:00:08]} 4. Ba4 {[%emt 0:00:03]} Nf6 {[%emt 0:00:48]} 5. d3 {[%emt 0:00:04]} b5 {[%emt 0:00:10]} 6. Bb3 {[%emt 0:00:03]} Be7 {[%emt 0:00:20]} 7. c3 {[%emt 0:00:40]} d6 {[%emt 0:00:23]} 8. Nbd2 {[%emt 0:01:00]} O-O {[%emt 0:00:26]} 9. O-O {[%emt 0:00:58]} Nb8 {[%emt 0:01:18]} 10. Re1 {[%emt 0:04:38]} Nbd7 {[%emt 0:00:19]} 11. Nf1 {[%emt 0:04:13]} Bb7 {[%emt 0:00:48]} 12. Ng3 {[%emt 0:02:22]} Re8 {[%emt 0:00:25]} 13. d4 {[%emt 0:08:18]} Bf8 {[%emt 0:06:38]} 14. Bc2 {[%emt 0:11:44]} g6 {[%emt 0:01:54]} 15. dxe5 {[%emt 0:03:55]} Nxe5 {[%emt 0:06:20]} 16. Nxe5 {[%emt 0:02:21]} dxe5 {[%emt 0:01:17]} 17. Be3 {[%emt 0:03:49]} Qe7 {[%emt 0:08:12]} 18. Qe2 {[%emt 0:03:19]} Rad8 {[%emt 0:02:59]} 19. Red1 {[%emt 0:02:46]} c5 {[%emt 0:09:21]} 20. a4 {[%emt 0:03:09]} c4 {[%emt 0:06:15]} 21. axb5 {[%emt 0:08:12]} axb5 {[%emt 0:00:59]} 22. Ra7 {[%emt 0:02:05]} Rxd1+ {[%emt 0:04:19]} 23. Bxd1 {[%emt 0:02:51]} Ra8 {[%emt 0:02:31]} 24. Rxa8 {[%emt 0:01:19]} Bxa8 {[%emt 0:00:02]} 25. f3 {[%emt 0:01:20]} Qc7 {[%emt 0:02:28]} 26. Nf1 {[%emt 0:04:38]} 1/2-1/2

[Event "DVM U12 2024"]
[Site "Heidelberg"]
[Date "2024.12.28"]
[Round "4"]
[White "Vu, Khoi Nguyen"]
[Black "Hendler, Maximilian"]
[Result "1-0"]
[ECO "B78"]
[WhiteElo "1730"]
[BlackElo "1644"]
[Annotator "NA RC"]
[PlyCount "61"]
[EventDate "2024.12.23"]
[EventType "team-tourn"]
[EventRounds "7"]
[EventCountry "GER"]
[SourceTitle "playchess.com"]
[Source "ChessBase"]
[SourceQuality "1"]
[TimeControl "40/5400+30:1800+30"]

1. e4 {[%emt 0:00:02]} c5 {[%emt 0:00:08]} 2. Nf3 {[%emt 0:00:08]} d6 {[%emt 0:00:10]} 3. d4 {[%emt 0:00:10]} cxd4 {[%emt 0:00:10]} 4. Nxd4 {[%emt 0:00:06]} Nf6 {[%emt 0:00:15]} 5. Nc3 {[%emt 0:00:05]} g6 {[%emt 0:00:13]} 6. Be3 {[%emt 0:00:05]} Bg7 {[%emt 0:00:13]} 7. f3 {[%emt 0:00:20]} O-O {[%emt 0:00:14]} 8. Bc4 {[%emt 0:00:17]} Nc6 {[%emt 0:01:08]} 9. Qd2 {[%emt 0:01:21]} Bd7 {[%emt 0:00:52]} 10. O-O-O {[%emt 0:00:37]} a6 {[%emt 0:05:26]} 11. g4 {[%emt 0:01:48]} b5 {[%emt 0:04:43]} 12. Bb3 {[%emt 0:00:22]} Na5 {[%emt 0:01:50]} 13. h4 {[%emt 0:01:24]} h5 {[%emt 0:01:29]} 14. g5 {[%emt 0:00:45]} Nh7 {[%emt 0:00:32]} 15. f4 {[%emt 0:00:39]} Nxb3+ {[%emt 0:00:19]} 16. axb3 {[%emt 0:00:52]} b4 {[%emt 0:01:53]} 17. Nd5 {[%emt 0:01:01]} e6 {[%emt 0:14:09]} 18. Nxb4 {[%emt 0:00:48]} Qa5 {[%emt 0:01:11]} 19. Kb1 {[%emt 0:01:03]} Qc7 {[%emt 0:03:23]} 20. Ne2 {[%emt 0:05:08]} a5 {[%emt 0:02:45]} 21. Na2 {[%emt 0:01:43]} d5 {[%emt 0:04:07]} 22. Nec3 {[%emt 0:02:40]} Bc6 {[%emt 0:03:38]} 23. exd5 {[%emt 0:01:35]} exd5 {[%emt 0:00:30]} 24. Bd4 {[%emt 0:02:05]} f6 {[%emt 0:01:08]} 25. Rhe1 {[%emt 0:00:31]} Rfe8 {[%emt 0:00:43]} 26. Re3 {[%emt 0:06:18]} Rxe3 {[%emt 0:02:36]} 27. Bxe3 {[%emt 0:00:45]} Rd8 {[%emt 0:03:22]} 28. Bd4 {[%emt 0:00:35]} Kf7 {[%emt 0:08:53]} 29. Re1 {[%emt 0:00:52]} Qd7 {[%emt 0:03:11]} 30. Bc5 {[%emt 0:00:55]} d4 {[%emt 0:02:44]} 31. Re7+ {[%emt 0:37:27]} 1-0

[Event "DVM U12 2024"]
[Site "Heidelberg"]
[Date "2024.12.28"]
[Round "4"]
[White "Beier, Martin"]
[Black "Vlach, Ludwig"]
[Result "0-1"]
[ECO "C01"]
[WhiteElo "1705"]
[BlackElo "1709"]
[Annotator "NA RC"]
[PlyCount "58"]
[EventDate "2024.12.23"]
[EventType "team-tourn"]
[EventRounds "7"]
[EventCountry "GER"]
[SourceTitle "playchess.com"]
[Source "ChessBase"]
[SourceQuality "1"]
[TimeControl "40/5400+30:1800+30"]

1. e4 {[%emt 0:00:01]} e6 {[%emt 0:00:05]} 2. d4 {[%emt 0:00:06]} d5 {[%emt 0:00:06]} 3. exd5 {[%emt 0:00:02]} exd5 {[%emt 0:00:07]} 4. Bd3 {[%emt 0:00:11]} c6 {[%emt 0:00:16]} 5. Nf3 {[%emt 0:00:11]} Bd6 {[%emt 0:00:07]} 6. c3 {[%emt 0:00:06]} Bg4 {[%emt 0:00:08]} 7. Be3 {[%emt 0:00:59]} Ne7 {[%emt 0:00:17]} 8. Nbd2 {[%emt 0:00:10]} Nd7 {[%emt 0:00:05]} 9. Qc2 {[%emt 0:00:32]} Qc7 {[%emt 0:00:27]} 10. a4 {[%emt 0:01:25]} a5 {[%emt 0:02:21]} 11. Rc1 {[%emt 0:00:51]} c5 {[%emt 0:03:59]} 12. dxc5 {[%emt 0:02:51]} Nxc5 {[%emt 0:00:38]} 13. Bb5+ {[%emt 0:00:18]} Bd7 {[%emt 0:00:36]} 14. Bxd7+ {[%emt 0:01:41]} Qxd7 {[%emt 0:00:14]} 15. Nd4 {[%emt 0:03:57]} O-O {[%emt 0:06:36]} 16. O-O {[%emt 0:00:17]} Ng6 {[%emt 0:01:32]} 17. Nf5 {[%emt 0:03:45]} Rac8 {[%emt 0:07:59]} 18. Bd4 {[%emt 0:07:30]} Ne6 {[%emt 0:03:10]} 19. Nxd6 {[%emt 0:03:23]} Nxd4 {[%emt 0:00:31]} 20. Qd3 {[%emt 0:00:21]} Nf4 {[%emt 0:05:34]} 21. Qb1 {[%emt 0:04:11]} Nde2+ {[%emt 0:02:51]} 22. Kh1 {[%emt 0:04:01]} Qxd6 {[%emt 0:06:42]} 23. Rce1 {[%emt 0:00:27]} Rfe8 {[%emt 0:12:27]} 24. g3 {[%emt 0:00:50]} Nh3 {[%emt 0:04:33]} 25. f4 {[%emt 0:07:20]} Qc6 {[%emt 0:05:48]} 26. Nf3 {[%emt 0:01:51]} d4 {[%emt 0:00:29]} 27. Kg2 {[%emt 0:07:53]} Nhg1 {[%emt 0:07:29]} 28. Qf5 {[%emt 0:17:31]} Re3 {[%emt 0:05:43]} 29. Qg4 {[%emt 0:02:15]} f5 {[%emt 0:04:25]} 0-1

[Event "DVM U12 2024"]
[Site "Heidelberg"]
[Date "2024.12.28"]
[Round "4"]
[White "Mi Plaza, Luis Leo Manuel"]
[Black "Buff, Hannes"]
[Result "1-0"]
[ECO "B10"]
[WhiteElo "1702"]
[BlackElo "1370"]
[Annotator "NA RC"]
[PlyCount "86"]
[EventDate "2024.12.23"]
[EventType "team-tourn"]
[EventRounds "7"]
[EventCountry "GER"]
[SourceTitle "playchess.com"]
[Source "ChessBase"]
[SourceQuality "1"]
[TimeControl "40/5400+30:1800+30"]

1. e4 {[%emt 0:00:11]} c5 {[%emt 0:00:09]} 2. c3 {[%emt 0:00:21]} d5 {[%emt 0:00:24]} 3. exd5 {[%emt 0:00:26]} Qxd5 {[%emt 0:00:24]} 4. d4 {[%emt 0:00:32]} cxd4 {[%emt 0:00:27]} 5. cxd4 {[%emt 0:00:26]} Nf6 {[%emt 0:00:44]} 6. Nc3 {[%emt 0:01:54]} Qd8 {[%emt 0:00:53]} 7. Bf4 {[%emt 0:02:26]} a6 {[%emt 0:04:52]} 8. Nf3 {[%emt 0:03:50]} Nc6 {[%emt 0:00:38]} 9. Be2 {[%emt 0:03:09]} g6 {[%emt 0:01:46]} 10. O-O {[%emt 0:02:01]} Bg7 {[%emt 0:00:39]} 11. d5 {[%emt 0:02:08]} Na7 {[%emt 0:05:19]} 12. Qd2 {[%emt 0:05:09]} O-O {[%emt 0:00:51]} 13. Rfd1 {[%emt 0:02:52]} Bf5 {[%emt 0:17:44]} 14. d6 {[%emt 0:10:30]} exd6 {[%emt 0:00:00]} 15. Qxd6 {[%emt 0:02:08]} Qxd6 {[%emt 0:00:00]} 16. Rxd6 {[%emt 0:02:40]} Rfd8 {[%emt 0:00:00]} 17. Rad1 {[%emt 0:02:14]} Rd7 {[%emt 0:02:28]} 18. Be5 {[%emt 0:03:18]} Rxd6 {[%emt 0:11:10]} 19. Rxd6 {[%emt 0:03:00]} Ng4 {[%emt 0:02:35]} 20. Bxg7 {[%emt 0:05:05]} Kxg7 {[%emt 0:00:09]} 21. h3 {[%emt 0:01:46]} Nf6 {[%emt 0:02:53]} 22. Nd4 {[%emt 0:03:14]} Re8 {[%emt 0:07:47]} 23. Nxf5+ {[%emt 0:03:25]} gxf5 {[%emt 0:00:51]} 24. Rb6 {[%emt 0:02:41]} Re7 {[%emt 0:01:53]} 25. Bf3 {[%emt 0:02:05]} Ne4 {[%emt 0:00:19]} 26. Nxe4 {[%emt 0:01:18]} fxe4 {[%emt 0:00:11]} 27. Be2 {[%emt 0:00:38]} f6 {[%emt 0:01:49]} 28. Kh2 {[%emt 0:01:54]} Kg6 {[%emt 0:02:01]} 29. g4 {[%emt 0:04:41]} Nc8 {[%emt 0:03:33]} 30. Rb3 {[%emt 0:03:11]} b5 {[%emt 0:01:42]} 31. Ra3 {[%emt 0:01:19]} Re6 {[%emt 0:00:36]} 32. f4 {[%emt 0:03:43]} Rd6 {[%emt 0:02:42]} 33. f5+ {[%emt 0:03:39]} Kg5 {[%emt 0:04:44]} 34. Kg3 {[%emt 0:01:00]} Ne7 {[%emt 0:03:51]} 35. h4+ {[%emt 0:01:26]} Kh6 {[%emt 0:00:17]} 36. Kf4 {[%emt 0:02:21]} Rd2 {[%emt 0:01:51]} 37. g5+ {[%emt 0:00:51]} Kg7 {[%emt 0:00:15]} 38. gxf6+ {[%emt 0:00:49]} Kxf6 {[%emt 0:00:11]} 39. Rxa6+ {[%emt 0:00:13]} Kf7 {[%emt 0:00:22]} 40. Bxb5 {[%emt 0:05:42]} Rxb2 {[%emt 0:00:30]} 41. Bc4+ {[%emt 0:30:55]} Kf8 {[%emt 0:31:31]} 42. Kxe4 {[%emt 0:02:47]} Rb4 {[%emt 0:00:47]} 43. Kd3 {[%emt 0:01:04]} Nxf5 {[%emt 0:01:11]} 1-0

[Event "DVM U12 2024"]
[Site "Heidelberg"]
[Date "2024.12.28"]
[Round "4"]
[White "Akcapinar, Timur"]
[Black "Berndt, Ronson"]
[Result "1-0"]
[ECO "B23"]
[WhiteElo "1687"]
[BlackElo "1812"]
[Annotator "NA RC"]
[PlyCount "89"]
[EventDate "2024.12.23"]
[EventType "team-tourn"]
[EventRounds "7"]
[EventCountry "GER"]
[SourceTitle "playchess.com"]
[Source "ChessBase"]
[SourceQuality "1"]
[TimeControl "40/5400+30:1800+30"]

1. e4 {[%emt 0:00:03]} c5 {[%emt 0:00:05]} 2. Nc3 {[%emt 0:00:04]} e6 {[%emt 0:00:10]} 3. f4 {[%emt 0:00:16]} Nc6 {[%emt 0:04:07]} 4. Nf3 {[%emt 0:00:48]} Be7 {[%emt 0:01:53]} 5. Bb5 {[%emt 0:01:38]} a6 {[%emt 0:00:45]} 6. Bxc6 {[%emt 0:00:05]} bxc6 {[%emt 0:00:27]} 7. d3 {[%emt 0:00:49]} d5 {[%emt 0:02:13]} 8. e5 {[%emt 0:00:15]} Bb7 {[%emt 0:04:09]} 9. O-O {[%emt 0:01:18]} Nh6 {[%emt 0:06:15]} 10. b3 {[%emt 0:00:50]} Nf5 {[%emt 0:06:45]} 11. Rf2 {[%emt 0:09:04]} Qd7 {[%emt 0:12:34]} 12. Na4 {[%emt 0:02:35]} Qc7 {[%emt 0:03:45]} 13. Ba3 {[%emt 0:00:55]} Qa5 {[%emt 0:05:52]} 14. Qe1 {[%emt 0:01:15]} Qxe1+ {[%emt 0:03:38]} 15. Rxe1 {[%emt 0:00:12]} Nd4 {[%emt 0:04:26]} 16. Bxc5 {[%emt 0:00:11]} Nxf3+ {[%emt 0:00:13]} 17. Rxf3 {[%emt 0:00:08]} Bd8 {[%emt 0:01:30]} 18. g4 {[%emt 0:05:07]} h6 {[%emt 0:00:23]} 19. f5 {[%emt 0:01:24]} Kd7 {[%emt 0:06:17]} 20. Bb6 {[%emt 0:03:18]} Be7 {[%emt 0:00:33]} 21. f6 {[%emt 0:01:22]} gxf6 {[%emt 0:00:11]} 22. exf6 {[%emt 0:00:11]} Bd6 {[%emt 0:00:34]} 23. Bc5 {[%emt 0:09:10]} Bxc5+ {[%emt 0:00:22]} 24. Nxc5+ {[%emt 0:00:18]} Kc7 {[%emt 0:00:07]} 25. Re5 {[%emt 0:01:36]} Rag8 {[%emt 0:00:46]} 26. h3 {[%emt 0:00:17]} h5 {[%emt 0:02:52]} 27. g5 {[%emt 0:02:19]} h4 {[%emt 0:00:42]} 28. Kh2 {[%emt 0:06:58]} Bc8 {[%emt 0:00:49]} 29. Rf2 {[%emt 0:04:12]} Rh5 {[%emt 0:11:26]} 30. d4 {[%emt 0:01:26]} Rhxg5 {[%emt 0:01:13]} 31. Rxg5 {[%emt 0:00:24]} Rxg5 {[%emt 0:00:21]} 32. Nd3 {[%emt 0:00:31]} Bd7 {[%emt 0:03:56]} 33. Ne5 {[%emt 0:06:39]} Be8 {[%emt 0:01:21]} 34. Rf4 {[%emt 0:00:07]} Rf5 {[%emt 0:05:54]} 35. Rxf5 {[%emt 0:00:32]} exf5 {[%emt 0:00:08]} 36. Nf3 {[%emt 0:01:43]} Kd6 {[%emt 0:00:18]} 37. Nxh4 {[%emt 0:00:04]} Ke6 {[%emt 0:00:05]} 38. Kg3 {[%emt 0:00:06]} Kxf6 {[%emt 0:00:28]} 39. Kf4 {[%emt 0:00:06]} Bd7 {[%emt 0:00:09]} 40. Nf3 {[%emt 0:00:37]} Ke6 {[%emt 0:05:55]} 41. Ne5 {[%emt 0:31:47]} Be8 {[%emt 0:30:05]} 42. Nd3 {[%emt 0:00:22]} a5 {[%emt 0:00:00]} 43. Nc5+ {[%emt 0:00:00]} Kf6 {[%emt 0:00:00]} 44. Nb7 {[%emt 0:00:00]} a4 {[%emt 0:00:00]} 45. bxa4 {[%emt 0:00:00]} 1-0

[Event "DVM U12 2024"]
[Site "Heidelberg"]
[Date "2024.12.28"]
[Round "4"]
[White "Rogner, Alexander Luis"]
[Black "Berger, Friedrich Richard"]
[Result "1/2-1/2"]
[ECO "C68"]
[WhiteElo "1674"]
[BlackElo "1658"]
[Annotator "NA RC"]
[PlyCount "66"]
[EventDate "2024.12.23"]
[EventType "team-tourn"]
[EventRounds "7"]
[EventCountry "GER"]
[SourceTitle "playchess.com"]
[Source "ChessBase"]
[SourceQuality "1"]
[TimeControl "40/5400+30:1800+30"]

1. e4 {[%emt 0:00:03]} e5 {[%emt 0:00:11]} 2. Nf3 {[%emt 0:00:05]} Nc6 {[%emt 0:00:04]} 3. Bb5 {[%emt 0:00:06]} a6 {[%emt 0:00:16]} 4. Bxc6 {[%emt 0:00:15]} dxc6 {[%emt 0:00:11]} 5. d4 {[%emt 0:00:09]} exd4 {[%emt 0:02:48]} 6. Qxd4 {[%emt 0:00:11]} Qxd4 {[%emt 0:01:30]} 7. Nxd4 {[%emt 0:00:18]} Bc5 {[%emt 0:06:23]} 8. Be3 {[%emt 0:01:33]} Bb6 {[%emt 0:01:18]} 9. Nd2 {[%emt 0:00:42]} Nf6 {[%emt 0:01:12]} 10. f3 {[%emt 0:00:27]} Bd7 {[%emt 0:05:32]} 11. O-O-O {[%emt 0:00:23]} O-O-O {[%emt 0:01:59]} 12. Rhe1 {[%emt 0:00:21]} Rhe8 {[%emt 0:01:44]} 13. Nc4 {[%emt 0:06:18]} h6 {[%emt 0:05:59]} 14. Bg1 {[%emt 0:06:31]} Bxd4 {[%emt 0:09:35]} 15. Bxd4 {[%emt 0:00:15]} Be6 {[%emt 0:02:02]} 16. Ne3 {[%emt 0:01:22]} a5 {[%emt 0:03:01]} 17. Bxf6 {[%emt 0:00:24]} gxf6 {[%emt 0:00:19]} 18. Rxd8+ {[%emt 0:00:18]} Rxd8 {[%emt 0:00:23]} 19. a3 {[%emt 0:00:13]} Rg8 {[%emt 0:01:01]} 20. Kd2 {[%emt 0:04:35]} Kd7 {[%emt 0:02:30]} 21. g3 {[%emt 0:05:33]} b5 {[%emt 0:02:34]} 22. c3 {[%emt 0:02:14]} Kd6 {[%emt 0:02:27]} 23. Nc2 {[%emt 0:02:42]} Rd8 {[%emt 0:02:46]} 24. Rd1 {[%emt 0:01:04]} Ke5+ {[%emt 0:05:21]} 25. Ke1 {[%emt 0:00:25]} Rxd1+ {[%emt 0:00:36]} 26. Kxd1 {[%emt 0:00:08]} c5 {[%emt 0:05:42]} 27. Ke2 {[%emt 0:01:25]} f5 {[%emt 0:01:03]} 28. exf5 {[%emt 0:05:14]} Kxf5 {[%emt 0:01:28]} 29. Ne3+ {[%emt 0:02:05]} Ke5 {[%emt 0:00:30]} 30. Kf2 {[%emt 0:05:01]} a4 {[%emt 0:01:00]} 31. Nf1 {[%emt 0:00:18]} f5 {[%emt 0:02:32]} 32. Ke3 {[%emt 0:00:30]} h5 {[%emt 0:01:12]} 33. Nd2 {[%emt 0:00:51]} Bd5 {[%emt 0:01:49]} 1/2-1/2

[Event "DVM U12 2024"]
[Site "Heidelberg"]
[Date "2024.12.28"]
[Round "4"]
[White "Thoms, Eric"]
[Black "Botvinnik, Julius"]
[Result "1-0"]
[ECO "C56"]
[WhiteElo "1666"]
[BlackElo "1700"]
[Annotator "NA RC"]
[PlyCount "73"]
[EventDate "2024.12.23"]
[EventType "team-tourn"]
[EventRounds "7"]
[EventCountry "GER"]
[SourceTitle "playchess.com"]
[Source "ChessBase"]
[SourceQuality "1"]
[TimeControl "40/5400+30:1800+30"]

1. e4 {[%emt 0:00:04]} e5 {[%emt 0:00:10]} 2. Nf3 {[%emt 0:00:08]} Nc6 {[%emt 0:00:10]} 3. Bc4 {[%emt 0:00:07]} Bc5 {[%emt 0:00:07]} 4. c3 {[%emt 0:00:08]} Nf6 {[%emt 0:00:08]} 5. d4 {[%emt 0:00:07]} exd4 {[%emt 0:00:10]} 6. O-O {[%emt 0:00:12]} d5 {[%emt 0:02:44]} 7. exd5 {[%emt 0:00:08]} Nxd5 {[%emt 0:00:13]} 8. Qb3 {[%emt 0:00:07]} Na5 {[%emt 0:00:44]} 9. Qb5+ {[%emt 0:00:12]} c6 {[%emt 0:01:03]} 10. Qxc5 {[%emt 0:00:08]} dxc3 {[%emt 0:01:20]} 11. Bxd5 {[%emt 0:00:27]} cxd5 {[%emt 0:00:41]} 12. Nxc3 {[%emt 0:00:25]} Be6 {[%emt 0:00:37]} 13. Re1 {[%emt 0:02:55]} b6 {[%emt 0:01:01]} 14. Qxd5 {[%emt 0:04:37]} Qxd5 {[%emt 0:00:34]} 15. Nxd5 {[%emt 0:00:08]} O-O {[%emt 0:00:32]} 16. Nc7 {[%emt 0:00:20]} Rad8 {[%emt 0:00:09]} 17. Nxe6 {[%emt 0:00:12]} fxe6 {[%emt 0:00:05]} 18. Bg5 {[%emt 0:01:43]} Rd5 {[%emt 0:00:31]} 19. Bh4 {[%emt 0:01:33]} Rh5 {[%emt 0:01:10]} 20. Bg3 {[%emt 0:00:56]} Rb5 {[%emt 0:00:47]} 21. b3 {[%emt 0:00:39]} Re8 {[%emt 0:00:37]} 22. Rac1 {[%emt 0:01:01]} Rc5 {[%emt 0:01:26]} 23. Rxc5 {[%emt 0:00:55]} bxc5 {[%emt 0:00:06]} 24. Re5 {[%emt 0:00:39]} Nb7 {[%emt 0:01:10]} 25. h3 {[%emt 0:00:16]} h6 {[%emt 0:00:29]} 26. Kf1 {[%emt 0:00:28]} Kf7 {[%emt 0:00:23]} 27. Nd2 {[%emt 0:00:33]} Rd8 {[%emt 0:00:21]} 28. Ke2 {[%emt 0:00:14]} Rd5 {[%emt 0:00:21]} 29. Ne4 {[%emt 0:01:59]} a5 {[%emt 0:01:37]} 30. Rxd5 {[%emt 0:00:10]} exd5 {[%emt 0:00:07]} 31. Nd6+ {[%emt 0:00:09]} Nxd6 {[%emt 0:00:14]} 32. Bxd6 {[%emt 0:00:08]} c4 {[%emt 0:00:17]} 33. bxc4 {[%emt 0:00:11]} dxc4 {[%emt 0:00:16]} 34. Kd2 {[%emt 0:00:27]} Ke6 {[%emt 0:00:08]} 35. Bf8 {[%emt 0:00:09]} Kf7 {[%emt 0:00:09]} 36. Bc5 {[%emt 0:00:11]} Ke6 {[%emt 0:00:12]} 37. Kc3 {[%emt 0:00:08]} 1-0

[Event "DVM U12 2024"]
[Site "Heidelberg"]
[Date "2024.12.28"]
[Round "4"]
[White "Bergmann, Rafael Antonio"]
[Black "Heidtkamp, Anna"]
[Result "1-0"]
[ECO "C78"]
[WhiteElo "1647"]
[BlackElo "1663"]
[Annotator "NA RC"]
[PlyCount "53"]
[EventDate "2024.12.23"]
[EventType "team-tourn"]
[EventRounds "7"]
[EventCountry "GER"]
[SourceTitle "playchess.com"]
[Source "ChessBase"]
[SourceQuality "1"]
[TimeControl "40/5400+30:1800+30"]

1. e4 {[%emt 0:00:02]} e5 {[%emt 0:00:05]} 2. Nf3 {[%emt 0:00:06]} Nc6 {[%emt 0:00:05]} 3. Bb5 {[%emt 0:00:06]} Nf6 {[%emt 0:00:16]} 4. O-O {[%emt 0:02:58]} a6 {[%emt 0:02:21]} 5. Ba4 {[%emt 0:00:33]} b5 {[%emt 0:00:09]} 6. Bb3 {[%emt 0:00:14]} Bc5 {[%emt 0:00:06]} 7. d3 {[%emt 0:00:28]} h6 {[%emt 0:00:15]} 8. Nc3 {[%emt 0:00:38]} d6 {[%emt 0:00:15]} 9. Nd5 {[%emt 0:00:46]} Bg4 {[%emt 0:00:21]} 10. Ne3 {[%emt 0:00:34]} Bh5 {[%emt 0:00:36]} 11. Nf5 {[%emt 0:00:14]} O-O {[%emt 0:00:18]} 12. c3 {[%emt 0:01:31]} Ne7 {[%emt 0:00:28]} 13. Ng3 {[%emt 0:00:07]} Bg4 {[%emt 0:00:34]} 14. h3 {[%emt 0:00:14]} Be6 {[%emt 0:00:11]} 15. Nh4 {[%emt 0:04:37]} Bxb3 {[%emt 0:01:27]} 16. axb3 {[%emt 0:01:31]} Ng6 {[%emt 0:00:33]} 17. Nhf5 {[%emt 0:00:15]} d5 {[%emt 0:01:21]} 18. Qf3 {[%emt 0:02:22]} dxe4 {[%emt 0:00:38]} 19. dxe4 {[%emt 0:00:02]} c6 {[%emt 0:04:18]} 20. Rd1 {[%emt 0:00:59]} Qc7 {[%emt 0:00:27]} 21. Nxh6+ {[%emt 0:00:44]} Kh8 {[%emt 0:05:59]} 22. Nhf5 {[%emt 0:01:44]} Qa7 {[%emt 0:01:30]} 23. Bg5 {[%emt 0:01:24]} Rfd8 {[%emt 0:01:13]} 24. Bxf6 {[%emt 0:02:10]} gxf6 {[%emt 0:00:16]} 25. b4 {[%emt 0:00:24]} Bb6 {[%emt 0:04:05]} 26. Qh5+ {[%emt 0:01:34]} Kg8 {[%emt 0:00:34]} 27. Qh6 {[%emt 0:00:04]} 1-0